[Event "*** SCC Grand Prix: Titled Tuesday Blitz"]
[Site "Chess.com"]
[Date "2020.06.02"]
[Round "6"]
[White "artooon"]
[Black "ShapkinAnatoliy"]
[Result "1-0"]
[WhiteElo "2736"]
[BlackElo "2579"]
[TimeControl "180+1"]
[EndTime "11:12:46 PDT"]
[Termination "artooon won on time"]

1. e4 {[%clk 0:02:54.8]} 1... e5 {[%clk 0:02:38.7]} 2. Nf3 {[%clk 0:02:54.1]}
2... Nc6 {[%clk 0:02:34.8]} 3. d4 {[%clk 0:02:54]} 3... exd4 {[%clk 0:02:34.4]}
4. Bc4 {[%clk 0:02:53.8]} 4... Nf6 {[%clk 0:02:33.4]} 5. O-O {[%clk 0:02:53.8]}
5... Nxe4 {[%clk 0:02:32.6]} 6. Nc3 {[%clk 0:02:53.8]} 6... d5 {[%clk
0:02:32.9]} 7. Bxd5 {[%clk 0:02:53.1]} 7... dxc3 {[%clk 0:01:54.1]} 8. Bxe4
{[%clk 0:02:51.2]} 8... Qxd1 {[%clk 0:01:51.4]} 9. Rxd1 {[%clk 0:02:52.1]} 9...
Bd6 {[%clk 0:01:39.9]} 10. bxc3 {[%clk 0:02:47.2]} 10... h6 {[%clk 0:01:30]} 11.
Rb1 {[%clk 0:02:45]} 11... O-O {[%clk 0:01:26.6]} 12. Be3 {[%clk 0:02:34.2]}
12... Re8 {[%clk 0:01:16.7]} 13. Bxc6 {[%clk 0:02:22.3]} 13... bxc6 {[%clk
0:01:16.1]} 14. Nd4 {[%clk 0:02:22.1]} 14... Bd7 {[%clk 0:01:09.9]} 15. c4
{[%clk 0:02:13.4]} 15... c5 {[%clk 0:00:49.2]} 16. Nb5 {[%clk 0:02:10]} 16...
Bf5 {[%clk 0:00:49.5]} 17. Nxd6 {[%clk 0:02:07]} 17... cxd6 {[%clk 0:00:50.4]}
18. Rxd6 {[%clk 0:02:07.5]} 18... Rab8 {[%clk 0:00:39.1]} 19. Rxb8 {[%clk
0:01:57.5]} 19... Rxb8 {[%clk 0:00:38.4]} 20. h3 {[%clk 0:01:58]} 20... Rb2
{[%clk 0:00:32.7]} 21. c3 {[%clk 0:01:38.6]} 21... Rxa2 {[%clk 0:00:27.7]} 22.
Bxc5 {[%clk 0:01:38.4]} 22... a5 {[%clk 0:00:24.9]} 23. Ra6 {[%clk 0:01:12.5]}
23... Be6 {[%clk 0:00:24.6]} 24. Ra8+ {[%clk 0:01:10.2]} 24... Kh7 {[%clk
0:00:24]} 25. Bb4 {[%clk 0:01:09.6]} 25... Bxc4 {[%clk 0:00:21.4]} 26. Rxa5
{[%clk 0:01:07.1]} 26... Rxa5 {[%clk 0:00:20.7]} 27. Bxa5 {[%clk 0:01:08]} 27...
Kg6 {[%clk 0:00:21.3]} 28. f3 {[%clk 0:01:06.6]} 28... Kf5 {[%clk 0:00:21]} 29.
Kf2 {[%clk 0:01:07]} 29... Ke5 {[%clk 0:00:20.4]} 30. Bb6 {[%clk 0:01:06.2]}
30... g6 {[%clk 0:00:19.8]} 31. Be3 {[%clk 0:01:05.7]} 31... h5 {[%clk
0:00:19.6]} 32. Kg3 {[%clk 0:01:06]} 32... Kf5 {[%clk 0:00:19.2]} 33. Bd4 {[%clk
0:01:04.8]} 33... Bd5 {[%clk 0:00:16.7]} 34. Kf2 {[%clk 0:01:04.2]} 34... Bc4
{[%clk 0:00:17.1]} 35. Ke3 {[%clk 0:01:03.3]} 35... Bf1 {[%clk 0:00:16.6]} 36.
Kf2 {[%clk 0:00:57.4]} 36... Bc4 {[%clk 0:00:16.4]} 37. Bb6 {[%clk 0:00:57]}
37... Ke5 {[%clk 0:00:13.8]} 38. Bc7+ {[%clk 0:00:55.9]} 38... Kd5 {[%clk
0:00:12.4]} 39. g4 {[%clk 0:00:50.8]} 39... hxg4 {[%clk 0:00:12]} 40. fxg4
{[%clk 0:00:50.4]} 40... Ke6 {[%clk 0:00:09.3]} 41. Ke3 {[%clk 0:00:48.7]} 41...
g5 {[%clk 0:00:06.8]} 42. Bd8 {[%clk 0:00:46.6]} 42... Bf1 {[%clk 0:00:07.1]}
43. h4 {[%clk 0:00:39.8]} 43... gxh4 {[%clk 0:00:08]} 44. Bxh4 {[%clk
0:00:40.7]} 44... Bh3 {[%clk 0:00:08.4]} 45. Kf4 {[%clk 0:00:40]} 45... Bf1
{[%clk 0:00:08.1]} 46. Bd8 {[%clk 0:00:37.8]} 46... Kd5 {[%clk 0:00:06.1]} 47.
Kf5 {[%clk 0:00:36.7]} 47... Bd3+ {[%clk 0:00:06.5]} 48. Kf6 {[%clk 0:00:35.5]}
48... Bg6 {[%clk 0:00:07.4]} 49. Bb6 {[%clk 0:00:34.6]} 49... Kc4 {[%clk
0:00:08.3]} 50. Bd4 {[%clk 0:00:34.7]} 50... Kd5 {[%clk 0:00:08.1]} 51. Ke7
{[%clk 0:00:34.5]} 51... Kc4 {[%clk 0:00:09]} 52. Kd6 {[%clk 0:00:33.6]} 52...
Bd3 {[%clk 0:00:08.2]} 53. Bf6 {[%clk 0:00:32.4]} 53... Bg6 {[%clk 0:00:09.1]}
54. Kc6 {[%clk 0:00:29.6]} 54... Bd3 {[%clk 0:00:08.6]} 55. Kd6 {[%clk
0:00:25.3]} 55... Bg6 {[%clk 0:00:09.5]} 56. Ke7 {[%clk 0:00:25.8]} 56... Kd5
{[%clk 0:00:09.6]} 57. Kf8 {[%clk 0:00:26.7]} 57... Kc4 {[%clk 0:00:10.5]} 58.
Kg7 {[%clk 0:00:26.4]} 58... Kd5 {[%clk 0:00:11.4]} 59. g5 {[%clk 0:00:27.3]}
59... Kc4 {[%clk 0:00:12.3]} 60. Kh6 {[%clk 0:00:28.1]} 60... Kd5 {[%clk
0:00:13.2]} 61. Kg7 {[%clk 0:00:28]} 61... Kc4 {[%clk 0:00:14.1]} 62. Kf8 {[%clk
0:00:28.5]} 62... Kd5 {[%clk 0:00:13.5]} 63. Ke8 {[%clk 0:00:29.4]} 63... Kc4
{[%clk 0:00:14.4]} 64. Ke7 {[%clk 0:00:29.4]} 64... Bh5 {[%clk 0:00:15.3]} 65.
Kd6 {[%clk 0:00:29.3]} 65... Bg6 {[%clk 0:00:16.2]} 66. Ke7 {[%clk 0:00:29.7]}
66... Bh5 {[%clk 0:00:17.1]} 67. Kd7 {[%clk 0:00:30.1]} 67... Bg6 {[%clk
0:00:18]} 68. Kc6 {[%clk 0:00:31]} 68... Bh5 {[%clk 0:00:18]} 69. Kb6 {[%clk
0:00:31.9]} 69... Bg6 {[%clk 0:00:18.9]} 70. Ka5 {[%clk 0:00:31.9]} 70... Bh5
{[%clk 0:00:19.8]} 71. Ka4 {[%clk 0:00:32.8]} 71... Bg6 {[%clk 0:00:20.7]} 72.
Ka3 {[%clk 0:00:33.7]} 72... Bh5 {[%clk 0:00:21.6]} 73. Kb2 {[%clk 0:00:34.5]}
73... Bg6 {[%clk 0:00:22.5]} 74. Kc1 {[%clk 0:00:35.4]} 74... Bh5 {[%clk
0:00:23.4]} 75. Kd2 {[%clk 0:00:36.3]} 75... Bg6 {[%clk 0:00:24.3]} 76. Ke3
{[%clk 0:00:37.2]} 76... Bh5 {[%clk 0:00:25.2]} 77. Kf4 {[%clk 0:00:38.1]} 77...
Bg6 {[%clk 0:00:26.1]} 78. Kg4 {[%clk 0:00:39]} 78... Kd5 {[%clk 0:00:25.3]} 79.
Kf4 {[%clk 0:00:38.3]} 79... Kc4 {[%clk 0:00:26.2]} 80. Ke5 {[%clk 0:00:38.4]}
80... Bh5 {[%clk 0:00:26]} 81. Bh8 {[%clk 0:00:37.4]} 81... Bg6 {[%clk
0:00:26.9]} 82. Kd6 {[%clk 0:00:36.6]} 82... Bh5 {[%clk 0:00:26.1]} 83. Ke7
{[%clk 0:00:36.3]} 83... Bg6 {[%clk 0:00:27]} 84. Kf8 {[%clk 0:00:36.8]} 84...
Kd5 {[%clk 0:00:27]} 85. Kg7 {[%clk 0:00:36.2]} 85... Kc4 {[%clk 0:00:27.9]} 86.
Kf6 {[%clk 0:00:35.9]} 86... Kd5 {[%clk 0:00:27.9]} 87. Bg7 {[%clk 0:00:35.5]}
87... Kc4 {[%clk 0:00:28.8]} 88. Ke5 {[%clk 0:00:35.6]} 88... Bh5 {[%clk
0:00:28]} 89. Kf4 {[%clk 0:00:33.7]} 89... Bg6 {[%clk 0:00:28.9]} 90. Kg3 {[%clk
0:00:33.6]} 90... Kd5 {[%clk 0:00:28.8]} 91. Kf2 {[%clk 0:00:33.5]} 91... Kc4
{[%clk 0:00:29.7]} 92. Ke3 {[%clk 0:00:32.2]} 92... Bh5 {[%clk 0:00:29.7]} 93.
Ke4 {[%clk 0:00:31.1]} 93... Bg6+ {[%clk 0:00:30.6]} 94. Kf4 {[%clk 0:00:30.4]}
94... Bh5 {[%clk 0:00:30.2]} 95. Bd4 {[%clk 0:00:29.4]} 95... Bg6 {[%clk
0:00:31.1]} 96. Ke5 {[%clk 0:00:29.8]} 96... Bh5 {[%clk 0:00:30.7]} 97. Kf5
{[%clk 0:00:29.7]} 97... Bg6+ {[%clk 0:00:31.6]} 98. Kg4 {[%clk 0:00:30.1]}
98... Kd5 {[%clk 0:00:31.1]} 99. Bf6 {[%clk 0:00:28.9]} 99... Kc4 {[%clk
0:00:32]} 100. Kf4 {[%clk 0:00:28.8]} 100... Kd5 {[%clk 0:00:32.9]} 101. Ke3
{[%clk 0:00:29.7]} 1-0

[Event "*** SCC Grand Prix: Titled Tuesday Blitz"]
[Site "Chess.com"]
[Date "2020.06.02"]
[Round "7"]
[White "Khamrakulov_Djurabek"]
[Black "tvjosue"]
[Result "1-0"]
[WhiteElo "2808"]
[BlackElo "2590"]
[TimeControl "180+1"]
[EndTime "11:14:26 PDT"]
[Termination "Khamrakulov_Djurabek won by resignation"]

1. e4 {[%clk 0:03:00.9]} 1... c5 {[%clk 0:02:59.2]} 2. c3 {[%clk 0:03:00.9]}
2... d5 {[%clk 0:02:57.9]} 3. exd5 {[%clk 0:03:01]} 3... Qxd5 {[%clk 0:02:58.8]}
4. d4 {[%clk 0:03:01.7]} 4... Nc6 {[%clk 0:02:58.8]} 5. Nf3 {[%clk 0:03:02.3]}
5... Nf6 {[%clk 0:02:58.3]} 6. Be2 {[%clk 0:02:59.5]} 6... cxd4 {[%clk
0:02:57.8]} 7. cxd4 {[%clk 0:02:59.4]} 7... e6 {[%clk 0:02:58.1]} 8. Nc3 {[%clk
0:02:59.6]} 8... Qd6 {[%clk 0:02:58.4]} 9. O-O {[%clk 0:02:58.8]} 9... Be7
{[%clk 0:02:58.7]} 10. Be3 {[%clk 0:02:56.6]} 10... O-O {[%clk 0:02:58.5]} 11.
Rc1 {[%clk 0:02:56.8]} 11... b6 {[%clk 0:02:54.8]} 12. Nb5 {[%clk 0:02:55.4]}
12... Qd7 {[%clk 0:02:54]} 13. Ne5 {[%clk 0:02:52.7]} 13... Nxe5 {[%clk
0:02:50.9]} 14. Rc7 {[%clk 0:02:52.1]} 14... Nd5 {[%clk 0:02:51.8]} 15. Rxd7
{[%clk 0:02:51.7]} 15... Nxd7 {[%clk 0:02:49.8]} 16. Bf3 {[%clk 0:02:49.6]}
16... Bb7 {[%clk 0:02:49.7]} 17. Bxd5 {[%clk 0:02:49.7]} 17... Bxd5 {[%clk
0:02:49.2]} 18. Nc7 {[%clk 0:02:49.7]} 18... Rac8 {[%clk 0:02:47.1]} 19. Nxd5
{[%clk 0:02:49.7]} 19... exd5 {[%clk 0:02:48]} 20. Qa4 {[%clk 0:02:49.9]} 20...
Nf6 {[%clk 0:02:47.6]} 21. Qxa7 {[%clk 0:02:49.9]} 21... Bd6 {[%clk 0:02:48.1]}
1-0

[Event "*** SCC Grand Prix: Titled Tuesday Blitz"]
[Site "Chess.com"]
[Date "2020.06.02"]
[Round "7"]
[White "olksuna"]
[Black "SaqoChess_Twitch"]
[Result "1-0"]
[WhiteElo "2577"]
[BlackElo "2402"]
[TimeControl "180+1"]
[EndTime "11:15:23 PDT"]
[Termination "olksuna won by resignation"]

1. e4 {[%clk 0:03:00.9]} 1... c5 {[%clk 0:02:59.6]} 2. Nf3 {[%clk 0:03:00.8]}
2... d6 {[%clk 0:03:00]} 3. Nc3 {[%clk 0:02:59.5]} 3... Nf6 {[%clk 0:03:00.1]}
4. e5 {[%clk 0:03:00.1]} 4... dxe5 {[%clk 0:03:00]} 5. Nxe5 {[%clk 0:03:01]}
5... Nbd7 {[%clk 0:03:00.2]} 6. d4 {[%clk 0:03:00.8]} 6... cxd4 {[%clk
0:02:59.3]} 7. Qxd4 {[%clk 0:03:00.4]} 7... Nxe5 {[%clk 0:02:59]} 8. Qxe5 {[%clk
0:03:00.4]} 8... e6 {[%clk 0:02:59.5]} 9. Bg5 {[%clk 0:02:55.7]} 9... Bd6 {[%clk
0:02:58.8]} 10. Bb5+ {[%clk 0:02:54.3]} 10... Kf8 {[%clk 0:02:54.4]} 11. O-O-O
{[%clk 0:02:51.1]} 11... Ke7 {[%clk 0:02:43.8]} 12. Nd5+ {[%clk 0:02:33.7]}
12... Kf8 {[%clk 0:02:43.8]} 13. Nxf6 {[%clk 0:02:27.6]} 13... gxf6 {[%clk
0:02:38.8]} 14. Rxd6 {[%clk 0:02:07.2]} 14... Qa5 {[%clk 0:02:27.7]} 15. Qxf6
{[%clk 0:01:59.3]} 1-0

[Event "*** SCC Grand Prix: Titled Tuesday Blitz"]
[Site "Chess.com"]
[Date "2020.06.02"]
[Round "7"]
[White "Slovak_fighter2000"]
[Black "silverback96"]
[Result "1-0"]
[WhiteElo "2436"]
[BlackElo "2221"]
[TimeControl "180+1"]
[EndTime "11:15:43 PDT"]
[Termination "Slovak_fighter2000 won by checkmate"]

1. d4 {[%clk 0:03:00.9]} 1... Nf6 {[%clk 0:02:59.3]} 2. Nf3 {[%clk 0:03:01.8]}
2... e6 {[%clk 0:02:59.6]} 3. g3 {[%clk 0:03:02]} 3... d5 {[%clk 0:02:59.7]} 4.
Bg2 {[%clk 0:03:02.9]} 4... c5 {[%clk 0:03:00]} 5. O-O {[%clk 0:03:03.6]} 5...
Nc6 {[%clk 0:02:58.9]} 6. c4 {[%clk 0:03:03.4]} 6... cxd4 {[%clk 0:02:58.7]} 7.
Nxd4 {[%clk 0:03:04.3]} 7... Bc5 {[%clk 0:02:57.3]} 8. Nb3 {[%clk 0:02:58.9]}
8... Bb6 {[%clk 0:02:57.6]} 9. cxd5 {[%clk 0:02:53.9]} 9... exd5 {[%clk
0:02:58.5]} 10. Bg5 {[%clk 0:02:41.4]} 10... O-O {[%clk 0:02:52.4]} 11. Nc3
{[%clk 0:02:38.2]} 11... d4 {[%clk 0:02:52.2]} 12. Nd5 {[%clk 0:02:28.6]} 12...
Be6 {[%clk 0:02:43.5]} 13. Nxf6+ {[%clk 0:02:25.7]} 13... gxf6 {[%clk
0:02:44.4]} 14. Bh6 {[%clk 0:02:24.9]} 14... Re8 {[%clk 0:02:44.8]} 15. Rc1
{[%clk 0:02:03]} 15... Bd5 {[%clk 0:02:24.2]} 16. e3 {[%clk 0:01:50.4]} 16...
Bxg2 {[%clk 0:02:21.3]} 17. Qg4+ {[%clk 0:01:49.2]} 17... Kh8 {[%clk 0:02:20.5]}
18. Qg7# {[%clk 0:01:49.6]} 1-0

[Event "*** SCC Grand Prix: Titled Tuesday Blitz"]
[Site "Chess.com"]
[Date "2020.06.02"]
[Round "7"]
[White "ElviraBerend"]
[Black "floplover"]
[Result "0-1"]
[WhiteElo "2390"]
[BlackElo "2217"]
[TimeControl "180+1"]
[EndTime "11:16:01 PDT"]
[Termination "floplover won by resignation"]

1. d4 {[%clk 0:03:00.9]} 1... d5 {[%clk 0:02:59.2]} 2. c4 {[%clk 0:03:00.2]}
2... e6 {[%clk 0:02:59.3]} 3. Nf3 {[%clk 0:02:59.6]} 3... Nf6 {[%clk 0:02:59.3]}
4. g3 {[%clk 0:02:58.7]} 4... Be7 {[%clk 0:02:58.6]} 5. Bg2 {[%clk 0:02:58.2]}
5... O-O {[%clk 0:02:59.2]} 6. O-O {[%clk 0:02:58.3]} 6... dxc4 {[%clk
0:02:59.8]} 7. Qc2 {[%clk 0:02:58]} 7... a6 {[%clk 0:02:59.2]} 8. a4 {[%clk
0:02:58]} 8... Bd7 {[%clk 0:02:58.7]} 9. Qxc4 {[%clk 0:02:57.6]} 9... Bc6 {[%clk
0:02:58.8]} 10. Bf4 {[%clk 0:02:56.4]} 10... Bd6 {[%clk 0:02:57.6]} 11. Qc1
{[%clk 0:02:55.4]} 11... Nbd7 {[%clk 0:02:38.7]} 12. Nc3 {[%clk 0:02:54.3]}
12... Qe7 {[%clk 0:02:34.5]} 13. Bxd6 {[%clk 0:02:41.1]} 13... Qxd6 {[%clk
0:02:01.4]} 14. Qc2 {[%clk 0:02:40.3]} 14... Bxf3 {[%clk 0:01:59.2]} 15. Bxf3
{[%clk 0:02:39.4]} 15... c6 {[%clk 0:01:59.1]} 16. Rfd1 {[%clk 0:02:36.3]} 16...
a5 {[%clk 0:01:58]} 17. Bg2 {[%clk 0:02:33.2]} 17... Rfe8 {[%clk 0:01:47.2]} 18.
e4 {[%clk 0:02:29]} 18... Qe7 {[%clk 0:01:46.6]} 19. e5 {[%clk 0:02:26.5]} 19...
Nd5 {[%clk 0:01:45.3]} 20. Ne4 {[%clk 0:02:25.9]} 20... Nb4 {[%clk 0:01:42.8]}
21. Qd2 {[%clk 0:02:22.7]} 21... Nb6 {[%clk 0:01:41.7]} 22. Qd3 {[%clk
0:02:22.7]} 22... Nxd3 {[%clk 0:01:40.9]} 0-1

[Event "*** SCC Grand Prix: Titled Tuesday Blitz"]
[Site "Chess.com"]
[Date "2020.06.02"]
[Round "7"]
[White "gm_rashid"]
[Black "simonachess"]
[Result "1-0"]
[WhiteElo "2348"]
[BlackElo "2176"]
[TimeControl "180+1"]
[EndTime "11:16:10 PDT"]
[Termination "gm_rashid won by checkmate"]

1. e4 {[%clk 0:03:00.9]} 1... c5 {[%clk 0:02:54]} 2. Nf3 {[%clk 0:03:00.4]} 2...
Nc6 {[%clk 0:02:50]} 3. d4 {[%clk 0:03:00.3]} 3... cxd4 {[%clk 0:02:50.9]} 4.
Nxd4 {[%clk 0:03:00.2]} 4... Nf6 {[%clk 0:02:50.1]} 5. Nc3 {[%clk 0:03:00.7]}
5... e5 {[%clk 0:02:50.4]} 6. Nxc6 {[%clk 0:02:59.7]} 6... bxc6 {[%clk
0:02:48.9]} 7. Bc4 {[%clk 0:03:00]} 7... Bc5 {[%clk 0:02:47.8]} 8. O-O {[%clk
0:02:58.3]} 8... O-O {[%clk 0:02:47.8]} 9. Bg5 {[%clk 0:02:57.5]} 9... Be7
{[%clk 0:02:48]} 10. Qd3 {[%clk 0:02:55.5]} 10... h6 {[%clk 0:02:48.2]} 11. Bxf6
{[%clk 0:02:54]} 11... Bxf6 {[%clk 0:02:49.1]} 12. Rad1 {[%clk 0:02:51.6]} 12...
Be7 {[%clk 0:02:49.4]} 13. Bb3 {[%clk 0:02:38.4]} 13... Kh8 {[%clk 0:02:49.4]}
14. Ne2 {[%clk 0:02:36.5]} 14... d6 {[%clk 0:02:49.2]} 15. Ng3 {[%clk
0:02:35.7]} 15... g6 {[%clk 0:02:47]} 16. c4 {[%clk 0:02:27]} 16... Kh7 {[%clk
0:02:39.2]} 17. Bc2 {[%clk 0:02:23.1]} 17... Be6 {[%clk 0:02:37.9]} 18. b3
{[%clk 0:02:18.1]} 18... a6 {[%clk 0:02:31.7]} 19. Nf5 {[%clk 0:02:14]} 19...
Bxf5 {[%clk 0:02:22.7]} 20. exf5 {[%clk 0:02:13.7]} 20... Kg7 {[%clk 0:02:04.1]}
21. f4 {[%clk 0:02:06.3]} 21... exf4 {[%clk 0:01:58.9]} 22. Rxf4 {[%clk
0:02:03.7]} 22... g5 {[%clk 0:01:55.7]} 23. f6+ {[%clk 0:02:02.9]} 23... Bxf6
{[%clk 0:01:55.6]} 24. Qh7# {[%clk 0:02:02.3]} 1-0

[Event "*** SCC Grand Prix: Titled Tuesday Blitz"]
[Site "Chess.com"]
[Date "2020.06.02"]
[Round "7"]
[White "murtas73"]
[Black "Lenyas66"]
[Result "0-1"]
[WhiteElo "2655"]
[BlackElo "2536"]
[TimeControl "180+1"]
[EndTime "11:16:16 PDT"]
[Termination "Lenyas66 won by resignation"]

1. d4 {[%clk 0:03:00.9]} 1... e6 {[%clk 0:03:00]} 2. c4 {[%clk 0:03:00.3]} 2...
Bb4+ {[%clk 0:02:59.7]} 3. Bd2 {[%clk 0:02:59.5]} 3... a5 {[%clk 0:02:58.7]} 4.
g3 {[%clk 0:02:57.9]} 4... Nf6 {[%clk 0:02:58.4]} 5. Bg2 {[%clk 0:02:57.8]} 5...
d5 {[%clk 0:02:58.6]} 6. a3 {[%clk 0:02:55.6]} 6... Be7 {[%clk 0:02:57]} 7. Qc2
{[%clk 0:02:54.5]} 7... O-O {[%clk 0:02:56.1]} 8. Nf3 {[%clk 0:02:54.1]} 8...
Nbd7 {[%clk 0:02:52.8]} 9. O-O {[%clk 0:02:53.5]} 9... c5 {[%clk 0:02:51.7]} 10.
cxd5 {[%clk 0:02:51]} 10... exd5 {[%clk 0:02:45]} 11. dxc5 {[%clk 0:02:50.3]}
11... Nxc5 {[%clk 0:02:44.4]} 12. Bc3 {[%clk 0:02:50.8]} 12... Nce4 {[%clk
0:02:34.9]} 13. Bd4 {[%clk 0:02:46.3]} 13... Bf5 {[%clk 0:02:33.3]} 14. Qb3
{[%clk 0:02:45.3]} 14... Qd7 {[%clk 0:02:21.7]} 15. Nc3 {[%clk 0:02:44.6]} 15...
a4 {[%clk 0:02:16.8]} 16. Qb5 {[%clk 0:02:42.4]} 16... Nxc3 {[%clk 0:02:14.3]}
17. Qxd7 {[%clk 0:02:37.9]} 17... Nxe2+ {[%clk 0:02:13.5]} 18. Kh1 {[%clk
0:02:37.8]} 18... Bxd7 {[%clk 0:02:10.3]} 19. Be5 {[%clk 0:02:32.6]} 19... Bb5
{[%clk 0:02:01.9]} 20. Rfe1 {[%clk 0:02:23.9]} 20... Ng4 {[%clk 0:01:58.2]} 21.
Bd4 {[%clk 0:02:23.5]} 21... Bf6 {[%clk 0:01:49.1]} 22. Be3 {[%clk 0:02:16.8]}
22... d4 {[%clk 0:01:44.2]} 23. Bh3 {[%clk 0:02:14.4]} 23... dxe3 {[%clk
0:01:41.4]} 24. Bxg4 {[%clk 0:02:14.4]} 24... exf2 {[%clk 0:01:38.7]} 0-1

[Event "*** SCC Grand Prix: Titled Tuesday Blitz"]
[Site "Chess.com"]
[Date "2020.06.02"]
[Round "7"]
[White "almo64"]
[Black "ChessQueen"]
[Result "1/2-1/2"]
[WhiteElo "2823"]
[BlackElo "2658"]
[TimeControl "180+1"]
[EndTime "11:16:37 PDT"]
[Termination "Game drawn by repetition"]

1. e4 {[%clk 0:03:00.9]} 1... c6 {[%clk 0:02:59.8]} 2. Nc3 {[%clk 0:02:56.4]}
2... d5 {[%clk 0:02:59.3]} 3. g3 {[%clk 0:02:56.7]} 3... dxe4 {[%clk 0:02:57.7]}
4. Nxe4 {[%clk 0:02:56.5]} 4... Nd7 {[%clk 0:02:57.1]} 5. Qe2 {[%clk 0:02:55.6]}
5... Qc7 {[%clk 0:02:42]} 6. d4 {[%clk 0:02:53.7]} 6... Ngf6 {[%clk 0:02:39.2]}
7. Bf4 {[%clk 0:02:53.2]} 7... Qa5+ {[%clk 0:02:39.2]} 8. b4 {[%clk 0:02:47]}
8... Qxb4+ {[%clk 0:02:31.9]} 9. c3 {[%clk 0:02:47]} 9... Qa3 {[%clk 0:02:31.3]}
10. Nd6+ {[%clk 0:01:41.8]} 10... Kd8 {[%clk 0:02:31.2]} 11. Nxf7+ {[%clk
0:01:41.8]} 11... Ke8 {[%clk 0:02:31.8]} 12. Nd6+ {[%clk 0:00:40.3]} 12... Kd8
{[%clk 0:02:31.2]} 13. Nf7+ {[%clk 0:00:34.5]} 13... Ke8 {[%clk 0:02:31.3]} 14.
Nd6+ {[%clk 0:00:34.7]} 14... Kd8 {[%clk 0:02:31.4]} 15. Nf7+ {[%clk 0:00:35.1]}
1/2-1/2

[Event "*** SCC Grand Prix: Titled Tuesday Blitz"]
[Site "Chess.com"]
[Date "2020.06.02"]
[Round "7"]
[White "Borsuk_Konstantin"]
[Black "yobdc"]
[Result "0-1"]
[WhiteElo "2548"]
[BlackElo "2211"]
[TimeControl "180+1"]
[EndTime "11:16:40 PDT"]
[Termination "yobdc won by resignation"]

1. d4 {[%clk 0:03:00.9]} 1... d5 {[%clk 0:02:59.7]} 2. c4 {[%clk 0:03:01]} 2...
e6 {[%clk 0:03:00.1]} 3. Nc3 {[%clk 0:03:01.2]} 3... Be7 {[%clk 0:03:00.3]} 4.
e4 {[%clk 0:02:57.4]} 4... dxe4 {[%clk 0:02:56.6]} 5. Nxe4 {[%clk 0:02:57.8]}
5... Nf6 {[%clk 0:02:55.8]} 6. Ng3 {[%clk 0:02:54.8]} 6... c5 {[%clk 0:02:55.5]}
7. Nf3 {[%clk 0:02:52.8]} 7... Nc6 {[%clk 0:02:55.3]} 8. dxc5 {[%clk 0:02:38.1]}
8... Qxd1+ {[%clk 0:02:54.5]} 9. Kxd1 {[%clk 0:02:37.3]} 9... Bxc5 {[%clk
0:02:55.4]} 10. Be3 {[%clk 0:02:36.6]} 10... Bxe3 {[%clk 0:02:54.9]} 11. fxe3
{[%clk 0:02:36.9]} 11... Ng4 {[%clk 0:02:55]} 12. Ke2 {[%clk 0:02:33.7]} 12...
b6 {[%clk 0:02:50]} 13. h3 {[%clk 0:02:31.5]} 13... Nge5 {[%clk 0:02:49.6]} 14.
Kf2 {[%clk 0:02:25]} 14... Ba6 {[%clk 0:02:47.1]} 15. b3 {[%clk 0:02:07.9]}
15... O-O-O {[%clk 0:02:35.5]} 16. Be2 {[%clk 0:02:06.8]} 16... Nd3+ {[%clk
0:02:34.4]} 17. Bxd3 {[%clk 0:02:05.4]} 17... Rxd3 {[%clk 0:02:35.3]} 18. Rhd1
{[%clk 0:02:04.8]} 18... Rhd8 {[%clk 0:02:34.7]} 19. Rxd3 {[%clk 0:01:57.7]}
19... Rxd3 {[%clk 0:02:35.6]} 20. Ke2 {[%clk 0:01:57.7]} 20... Rd7 {[%clk
0:02:34.3]} 21. a4 {[%clk 0:01:52.1]} 21... Bb7 {[%clk 0:02:21.6]} 22. Ne4
{[%clk 0:01:39.3]} 22... Na5 {[%clk 0:02:10.8]} 23. Ned2 {[%clk 0:01:38.4]}
23... Bxf3+ {[%clk 0:02:00.7]} 24. gxf3 {[%clk 0:01:37.5]} 24... Rxd2+ {[%clk
0:02:00.1]} 0-1

[Event "*** SCC Grand Prix: Titled Tuesday Blitz"]
[Site "Chess.com"]
[Date "2020.06.02"]
[Round "7"]
[White "stoleriu"]
[Black "StephenDedalus83"]
[Result "1-0"]
[WhiteElo "2551"]
[BlackElo "2706"]
[TimeControl "180+1"]
[EndTime "11:16:41 PDT"]
[Termination "stoleriu won by resignation"]

1. e4 {[%clk 0:03:00.9]} 1... c5 {[%clk 0:02:59.9]} 2. Nf3 {[%clk 0:03:00.9]}
2... Nc6 {[%clk 0:02:59.1]} 3. Bb5 {[%clk 0:03:00.8]} 3... g6 {[%clk 0:02:58.1]}
4. Bxc6 {[%clk 0:02:59.5]} 4... dxc6 {[%clk 0:02:59]} 5. d3 {[%clk 0:02:57.2]}
5... Bg7 {[%clk 0:02:58.9]} 6. O-O {[%clk 0:02:56.3]} 6... e5 {[%clk 0:02:56.3]}
7. Be3 {[%clk 0:02:52.4]} 7... Qe7 {[%clk 0:02:56.2]} 8. Nbd2 {[%clk 0:02:49.1]}
8... Nh6 {[%clk 0:02:51.8]} 9. h3 {[%clk 0:02:39.5]} 9... O-O {[%clk 0:02:49]}
10. Nc4 {[%clk 0:02:37.6]} 10... f6 {[%clk 0:02:47.9]} 11. a4 {[%clk 0:02:33.9]}
11... b6 {[%clk 0:02:32.3]} 12. Qd2 {[%clk 0:02:33.5]} 12... Be6 {[%clk
0:02:31]} 13. Bxh6 {[%clk 0:02:32.4]} 13... Bxh6 {[%clk 0:02:19.6]} 14. Qxh6
{[%clk 0:02:33.3]} 14... Rad8 {[%clk 0:02:16.9]} 15. Qe3 {[%clk 0:02:23.3]}
15... g5 {[%clk 0:02:13.9]} 16. Nh2 {[%clk 0:02:20.8]} 16... h5 {[%clk
0:02:12.3]} 17. a5 {[%clk 0:02:15.1]} 17... b5 {[%clk 0:02:10.6]} 18. Nd2 {[%clk
0:02:15.5]} 18... a6 {[%clk 0:02:07.5]} 19. Nb3 {[%clk 0:02:10.8]} 19... Bxb3
{[%clk 0:02:06.2]} 20. cxb3 {[%clk 0:02:11.7]} 20... Rd4 {[%clk 0:02:06.1]} 21.
Nf3 {[%clk 0:02:09]} 21... Rb4 {[%clk 0:02:06]} 22. Rfc1 {[%clk 0:01:50.8]}
22... Rxb3 {[%clk 0:02:04.8]} 23. Qxc5 {[%clk 0:01:50.7]} 23... Qxc5 {[%clk
0:02:01.7]} 24. Rxc5 {[%clk 0:01:51.6]} 24... Rc8 {[%clk 0:01:59.3]} 25. Rac1
{[%clk 0:01:50.5]} 25... Rxb2 {[%clk 0:01:57.3]} 26. Rxc6 {[%clk 0:01:50.9]}
26... Rxc6 {[%clk 0:01:55.4]} 27. Rxc6 {[%clk 0:01:51.8]} 27... b4 {[%clk
0:01:55.3]} 28. Rxa6 {[%clk 0:01:51.1]} 28... b3 {[%clk 0:01:55.3]} 29. Rxf6
{[%clk 0:01:49.8]} 29... Ra2 {[%clk 0:01:54.1]} 30. Rb6 {[%clk 0:01:48.7]} 30...
b2 {[%clk 0:01:53.7]} 31. Kh2 {[%clk 0:01:49]} 1-0